bitfinex-derivatives/quotes_SOLF0:USTF0_20250901
["timestamp","ask_amount","ask_price","bid_price","bid_amount"]
[1756695034810,4.5646,197.14,197.08,9.70996711]
[1756695035200,70.9872,197.19,197.08,9.70996711]
[1756695035505,70.9734,197.23,197.08,9.70996711]
[1756695035710,70.9734,197.23,197.07,340.84]
[1756695035711,70.9944,197.17,197.07,340.84]
[1756695036308,70.9886,197.19,197.07,340.84]
[1756695036812,4.5646,197.15,197.07,340.84]
[1756695037015,70.9773,197.22,197.07,340.84]
[1756695037517,4.5639,197.17,197.07,340.84]
[1756695038110,4.5639,197.17,197.09,5.95863145]
[1756695038311,4.5643,197.15,197.09,5.95863145]
[1756695038617,70.9883,197.19,197.09,5.95863145]
[1756695039316,70.984,197.2,197.09,5.95863145]
[1756695039506,70.9872,197.19,197.09,5.95863145]
[1756695040113,4.5634,197.2,197.09,5.95863145]
[1756695040523,70.9834,197.2,197.09,5.95863145]
[1756695040909,70.999,197.16,197.07,340.84]
[1756695041114,71.0164,197.11,197.02,5.95863145]
[1756695041315,4.5662,197.08,197.02,5.95863145]
[1756695041615,71.0017,197.15,197.02,5.95863145]
[1756695042016,4.5652,197.12,197.02,5.95863145]
[1756695042519,71.0053,197.14,197.02,5.95863145]
[1756695042920,71.0021,197.15,197.02,5.95863145]
[1756695043721,71.0055,197.14,197.02,5.95863145]
[1756695043921,70.9873,197.19,197.02,5.95863145]
[1756695044110,7.66703825,197.18,197.1,5.95863145]
[1756695044311,70.9753,197.23,197.1,5.95863145]
[1756695044512,10.28537892,197.22,197.1,5.95863145]
[1756695044722,4.5632,197.2,197.1,5.95863145]
[1756695045715,4.5627,197.22,197.1,10.52393145]
[1756695045912,7.68095885,197.21,197.14,5.95863145]
[1756695046217,417.08492405,197.33,197.14,5.95863145]
[1756695046415,4.5625,197.23,197.14,5.95863145]
[1756695046608,7.68738552,197.22,197.14,5.95863145]
[1756695046819,7.68738552,197.21,197.13,5.95863145]
[1756695047015,4.5631,197.21,197.13,5.95863145]
[1756695047418,70.9545,197.29,197.13,5.95863145]
[1756695047618,70.9692,197.24,197.13,5.95863145]
[1756695047817,70.9545,197.29,197.13,5.95863145]
[1756695047818,3.6447383,197.23,197.13,5.95863145]
[1756695048118,70.9353,197.34,197.17,5.95863145]
[1756695048421,3.59366559,197.33,197.21,5.95863145]
[1756695048622,3.59366559,197.32,197.25,5.95863145]
[1756695048820,70.915,197.4,197.25,5.95863145]
[1756695049115,3.59616881,197.39,197.25,5.95863145]
[1756695049316,74.51846881,197.38,197.24,5.95863145]
[1756695049524,3.59616881,197.37,197.24,5.95863145]
[1756695049722,3.59616881,197.36,197.21,284.2394]
[1756695050018,3.59616881,197.35,197.28,5.95863145]
[1756695050217,3.59554724,197.34,197.25,5.95863145]
[1756695050518,4.5601,197.34,197.25,5.95863145]
[1756695050717,70.9379,197.33,197.22,5.95863145]
[1756695050918,70.9163,197.39,197.26,5.95863145]
[1756695051114,3.5956594,197.38,197.26,5.95863145]
[1756695051318,3.5956594,197.37,197.3,5.95863145]
[1756695051523,3.5956594,197.36,197.3,5.95863145]
[1756695051718,4.56,197.34,197.3,5.95863145]
[1756695051911,70.9116,197.4,197.3,5.95863145]
[1756695052112,4.5593,197.37,197.3,5.95863145]
[1756695052818,4.5587,197.4,197.3,5.95863145]
[1756695053014,70.9194,197.38,197.3,5.95863145]
[1756695053219,4.5594,197.37,197.3,5.95863145]
[1756695053815,4.5587,197.4,197.3,5.95863145]
[1756695054017,3.59472166,197.39,197.3,5.95863145]
[1756695054215,70.8942,197.45,197.36,5.95863145]
[1756695054417,4.5586,197.4,197.36,5.95863145]
[1756695054620,70.908,197.41,197.32,5.95863145]
[1756695054821,3.59365643,197.4,197.3,5.95863145]
[1756695055017,4.5595,197.36,197.23,345.2823]
[1756695055224,70.9199,197.38,197.27,5.95863145]
[1756695055529,70.9044,197.42,197.27,5.95863145]
[1756695055732,3.59254862,197.41,197.27,5.95863145]
[1756695056028,70.926,197.36,197.25,5.95863145]
[1756695056225,4.5604,197.32,197.25,5.95863145]
[1756695056426,70.944,197.31,197.18,5.95863145]
[1756695056618,70.9489,197.3,197.18,5.95863145]
[1756695057022,4.562,197.25,197.18,5.95863145]
[1756695057225,70.9512,197.29,197.18,5.95863145]
[1756695057421,70.9489,197.3,197.18,5.95863145]
[1756695058126,70.9407,197.32,197.18,5.95863145]
[1756695058322,70.9441,197.31,197.18,5.95863145]
[1756695058927,4.5615,197.28,197.18,5.95863145]
[1756695059626,4.5618,197.26,197.18,5.95863145]
[1756695059825,4.5618,197.26,197.12,76.97083145]
[1756695060131,4.5615,197.28,197.18,5.95863145]
[1756695060424,70.9116,197.4,197.22,5.95863145]
[1756695060634,3.58844955,197.36,197.22,5.95863145]
[1756695060827,4.5599,197.34,197.22,5.95863145]
[1756695061427,70.9233,197.37,197.22,10.52113145]
[1756695062228,70.9233,197.37,197.26,5.95863145]
[1756695062623,70.9191,197.38,197.25,5.95863145]
[1756695062624,4.5602,197.33,197.25,5.95863145]
[1756695063026,70.9233,197.37,197.25,5.95863145]
[1756695063529,70.9116,197.4,197.25,5.95863145]
[1756695063729,70.9116,197.4,197.29,5.95863145]
[1756695064633,70.9051,197.42,197.29,5.95863145]
[1756695064830,280.25894985,197.41,197.22,70.9756]
[1756695065035,70.9089,197.41,197.28,5.95863145]
[1756695065435,70.9133,197.4,197.28,5.95863145]
[1756695065830,4.5606,197.32,197.16,70.9968]
[1756695066028,4.5606,197.32,197.25,5.95863145]
[1756695066333,70.9441,197.31,197.19,5.95863145]
[1756695066534,70.9406,197.32,197.19,5.95863145]
[1756695066831,70.9693,197.24,197.15,5.95863145]
[1756695067030,70.9737,197.23,197.11,346.65863145]
[1756695067432,70.9597,197.27,197.11,346.65863145]
[1756695067624,70.9442,197.31,197.15,5.95863145]
[1756695067831,70.9482,197.3,197.15,5.95863145]
[1756695068237,4.5618,197.27,197.15,10.52273145]
[1756695068436,4.5618,197.27,197.15,5.95863145]
[1756695068629,70.9482,197.3,197.15,5.95863145]
[1756695069035,4.562,197.26,197.15,5.95863145]
[1756695069536,70.9515,197.29,197.15,5.95863145]
[1756695069737,70.9729,197.23,197.12,5.95863145]
[1756695070031,70.9622,197.26,197.12,5.95863145]
[1756695070233,4.5628,197.22,197.12,5.95863145]
[1756695070531,70.9622,197.26,197.12,5.95863145]
[1756695070736,70.9658,197.25,197.12,5.95863145]
[1756695070939,70.972,197.24,197.12,5.95863145]
[1756695071136,70.952,197.29,197.16,5.95863145]
[1756695071331,4.5622,197.25,197.16,5.95863145]
[1756695071531,70.9661,197.25,197.16,5.95863145]
[1756695071731,70.9695,197.24,197.12,5.95863145]
[1756695071926,70.9661,197.25,197.12,5.95863145]
[1756695071927,70.9731,197.23,197.12,5.95863145]
[1756695072130,70.9805,197.21,197.12,5.95863145]
[1756695072336,70.9731,197.23,197.12,5.95863145]
[1756695072536,202.28,197.26,197.12,5.95863145]
[1756695072737,70.9641,197.26,197.12,5.95863145]
[1756695072938,4.5627,197.22,197.12,5.95863145]
[1756695074040,4.5618,197.26,197.16,5.95863145]
[1756695074939,4.5622,197.25,197.16,5.95863145]
[1756695075934,4.5616,197.27,197.16,5.95863145]
[1756695076140,141.8442,197.38,197.2,5.95863145]
[1756695076333,70.9408,197.32,197.2,5.95863145]
[1756695076534,4.5613,197.29,197.2,5.95863145]
[1756695076735,271.293,197.35,197.2,5.95863145]
[1756695077034,4.5611,197.3,197.2,5.95863145]
[1756695077436,70.9374,197.33,197.2,5.95863145]
[1756695077637,4.5607,197.31,197.2,5.95863145]
[1756695077837,70.9221,197.38,197.24,5.95863145]
[1756695078342,70.937,197.33,197.2,5.95863145]
[1756695078537,70.9418,197.32,197.2,5.95863145]
[1756695078744,70.937,197.33,197.15,5.95863145]
[1756695078745,70.9585,197.27,197.15,5.95863145]
[1756695078935,70.944,197.31,197.15,5.95863145]
[1756695079134,70.9585,197.27,197.15,5.95863145]
[1756695079738,70.956,197.28,197.15,5.95863145]
[1756695079739,4.5623,197.24,197.15,5.95863145]
[1756695079934,270.004,197.31,197.15,5.95863145]
[1756695080139,198.6,197.32,197.19,5.95863145]
[1756695080343,4.5617,197.27,197.19,5.95863145]
[1756695080542,70.9554,197.28,197.15,5.95863145]
[1756695080944,70.9512,197.29,197.15,5.95863145]
[1756695081942,70.9446,197.31,197.15,5.95863145]
[1756695082644,4.5614,197.28,197.15,5.95863145]
[1756695082945,268.177,197.33,197.15,5.95863145]
[1756695083747,4.5609,197.3,197.19,4.5632]
[1756695084043,4.5609,197.3,197.19,10.52183145]
[1756695084239,4.5613,197.29,197.19,5.95863145]
[1756695084941,4.5615,197.28,197.19,5.95863145]
[1756695085245,70.9593,197.27,197.14,5.95863145]
[1756695085436,4.5621,197.25,197.14,5.95863145]
[1756695085841,70.962,197.26,197.14,5.95863145]
[1756695087339,70.959,197.27,197.14,5.95863145]
[1756695087541,70.9528,197.29,197.14,5.95863145]
[1756695088048,195.82,197.34,197.18,5.95863145]
[1756695088245,70.9512,197.29,197.18,5.95863145]
[1756695088642,4.5622,197.25,197.18,5.95863145]
[1756695088943,70.9383,197.33,197.18,5.95863145]
[1756695089148,70.9479,197.3,197.18,5.95863145]
[1756695090142,70.9589,197.27,197.1,195.82]
[1756695090445,70.9623,197.26,197.14,5.95863145]
[1756695090640,70.9589,197.27,197.14,5.95863145]
[1756695091148,70.9512,197.29,197.14,5.95863145]
[1756695091349,70.9585,197.27,197.14,5.95863145]
[1756695091544,70.9811,197.21,197.11,5.95863145]
[1756695092044,70.9732,197.23,197.11,5.95863145]
[1756695093347,70.966,197.25,197.11,5.95863145]
[1756695093654,3.59393379,197.24,197.11,5.95863145]
[1756695093849,5.95863145,197.34,197.11,5.95863145]
[1756695094149,3.5946761,197.27,197.15,5.95863145]
[1756695094354,192.34,197.31,197.19,5.95863145]
[1756695094651,0.88253195,197.34,197.19,5.95863145]
[1756695094652,3.5960618,197.3,197.19,5.95863145]
[1756695094950,192.22,197.34,197.19,5.95863145]
[1756695095150,3.5975031,197.33,197.19,5.95863145]
[1756695095353,3.5975031,197.32,197.19,5.95863145]
[1756695095548,191.74,197.37,197.12,5.95863145]
[1756695095750,3.59853341,197.36,197.18,5.95863145]
[1756695095952,3.59853341,197.35,197.18,5.95863145]
[1756695096150,3.59853341,197.34,197.18,5.95863145]
[1756695096351,3.59853341,197.33,197.18,5.95863145]
[1756695096552,3.59853341,197.32,197.18,5.95863145]
[1756695096748,192.62239769,197.37,197.18,5.95863145]
[1756695096749,3.59853341,197.31,197.18,5.95863145]
[1756695096955,3.59853341,197.3,197.18,5.95863145]
[1756695097155,3.59853341,197.29,197.18,5.95863145]
[1756695097358,3.59853341,197.28,197.13,5.95863145]
[1756695097657,3.59925307,197.27,197.11,5.95863145]
[1756695097960,3.59925307,197.26,197.11,5.95863145]
[1756695098153,3.59925307,197.25,197.11,5.95863145]
[1756695098355,191.18,197.33,197.11,5.95863145]
[1756695098554,3.60018619,197.32,197.11,5.95863145]
[1756695098751,3.60018619,197.31,197.11,5.95863145]
[1756695098955,3.60018619,197.3,197.11,5.95863145]
[1756695099155,70.9551,197.28,197.11,76.97433145]
[1756695099362,70.9623,197.26,197.11,5.95863145]
[1756695100156,4.5629,197.22,197.14,4.5645]
[1756695100462,4.5629,197.22,197.11,5.95863145]
[1756695100669,70.9719,197.24,197.1,4.5654]
[1756695101063,70.9738,197.23,197.09,5.95863145]
[1756695101369,4.5638,197.18,197.09,5.95863145]
[1756695101571,70.9788,197.22,197.09,5.95863145]
[1756695101868,70.9691,197.25,197.09,5.95863145]
[1756695102079,4.5634,197.2,197.12,3.66667298]
[1756695102367,70.9711,197.24,197.12,3.66667298]
[1756695102868,70.9623,197.26,197.12,3.66667298]
[1756695103067,3.6053358,197.25,197.12,3.66667298]
[1756695103363,70.9694,197.24,197.12,3.66667298]
[1756695103572,70.9731,197.23,197.1,3.66667298]
[1756695104071,70.9623,197.26,197.13,3.66667298]
[1756695104271,3.60529887,197.25,197.13,3.66667298]
[1756695104473,3.60529887,197.24,197.13,3.66667298]
[1756695104673,70.9623,197.26,197.13,3.66667298]
[1756695104872,3.60547648,197.25,197.13,3.66667298]
[1756695105068,3.60547648,197.24,197.1,3.66667298]
[1756695105373,7.27214946,197.23,197.07,3.66667298]
[1756695105567,3.60547648,197.22,197.07,3.66667298]
[1756695105768,3.66667298,197.23,197.07,3.66667298]
[1756695105965,3.60497023,197.22,197.0,210.5754]
[1756695106167,3.66667298,197.2,197.01,0.8829014]
[1756695106368,3.66667298,197.08,197.01,0.8829014]
[1756695106561,3.66667298,197.08,196.79,340.78]
[1756695106562,187.78,197.11,196.91,3.66667298]
[1756695106767,3.60171679,197.1,196.94,3.66667298]
[1756695106962,3.66667298,197.11,196.94,3.66667298]
[1756695107174,3.60008983,197.1,196.94,3.66667298]
[1756695107371,191.24667298,197.14,196.97,3.66667298]
[1756695107570,3.59571351,197.13,196.97,3.66667298]
[1756695107777,3.59571351,197.12,196.97,3.66667298]
[1756695108070,15.15,197.25,196.96,5.96671169]
[1756695108274,5.96671169,197.18,197.0,5.96671169]
[1756695108473,3.59513189,197.17,197.0,5.96671169]
[1756695108671,5.96671169,197.18,197.0,5.96671169]
[1756695108974,3.59321453,197.17,197.0,5.96671169]
[1756695109175,5.96671169,197.18,197.0,5.96671169]
[1756695109475,3.59312509,197.17,197.0,5.96671169]
[1756695109668,5.96671169,197.18,197.0,5.96671169]
[1756695109866,3.59337325,197.17,197.0,5.96671169]
[1756695110078,5.96671169,197.23,197.0,5.96671169]
[1756695110270,3.59265583,197.22,197.0,5.96671169]
[1756695110469,3.59265583,197.21,197.0,5.96671169]
[1756695110672,3.59265583,197.2,197.0,5.96671169]
[1756695110871,3.59265583,197.19,197.0,5.96671169]
[1756695111067,3.59265583,197.18,197.0,5.96671169]
[1756695111273,192.26671169,197.23,197.0,5.96671169]
[1756695111472,3.59292874,197.22,197.0,5.96671169]
[1756695111673,3.59292874,197.21,197.0,5.96671169]
[1756695111868,3.59292874,197.2,197.0,5.96671169]
[1756695112066,3.59292874,197.19,197.0,5.96671169]
[1756695112371,5.96671169,197.23,197.04,5.96671169]
[1756695112676,3.59301173,197.22,197.04,5.96671169]
[1756695112876,3.59301173,197.21,197.04,5.96671169]
[1756695113073,3.59301173,197.2,197.04,5.96671169]
[1756695113269,3.59301173,197.19,197.04,5.96671169]
[1756695113473,526.02,197.24,197.04,5.96671169]
[1756695113775,3.59295235,197.23,197.04,5.96671169]
[1756695114074,526.02,197.24,197.04,5.96671169]
[1756695114075,3.59295235,197.22,197.04,5.96671169]
[1756695114374,3.59295235,197.21,197.04,5.96671169]
[1756695114577,525.88,197.24,197.04,5.96671169]
[1756695114765,3.59293835,197.23,197.04,5.96671169]
[1756695114970,3.59293835,197.22,197.04,5.96671169]
[1756695115171,525.36,197.24,197.04,5.96671169]
[1756695115371,3.59283761,197.23,197.04,5.96671169]
[1756695115570,3.59283761,197.22,197.08,5.96671169]
[1756695115774,340.84,197.24,197.02,5.96671169]
[1756695115775,3.59321757,197.21,197.02,5.96671169]
[1756695115975,9.55992926,197.2,197.02,5.96671169]
[1756695116178,3.59321757,197.19,196.98,5.96671169]
[1756695116377,3.59321757,197.18,196.98,5.96671169]
[1756695116578,183.92,197.21,197.02,5.96671169]
[1756695116778,3.59194055,197.2,197.02,5.96671169]
[1756695116972,3.59194055,197.19,197.02,5.96671169]
[1756695117171,3.59194055,197.18,197.02,5.96671169]
[1756695117373,183.92,197.21,197.02,5.96671169]
[1756695117677,3.59181011,197.2,197.02,5.96671169]
[1756695117879,3.59181011,197.19,197.02,5.96671169]
[1756695118074,3.59181011,197.18,197.02,5.96671169]
[1756695118275,183.48,197.22,197.02,5.96671169]
[1756695118478,3.5902784,197.21,197.02,5.96671169]
[1756695118679,3.5902784,197.2,197.07,4.5662]
[1756695118877,70.9786,197.22,197.07,4.5662]
[1756695119073,3.59045692,197.21,197.07,4.5662]
[1756695119278,183.26,197.23,197.07,4.5662]
[1756695119481,4.5639,197.17,197.05,4.5666]
[1756695119676,4.5639,197.17,197.04,5.96671169]
[1756695120182,4.5646,197.14,197.04,5.96671169]
[1756695120577,71.0018,197.15,197.04,5.96671169]
[1756695120772,70.9843,197.2,197.04,5.96671169]
[1756695120980,70.9767,197.22,197.04,5.96671169]
[1756695121277,182.22,197.23,197.04,5.96671169]
[1756695121278,4.5635,197.19,197.08,5.96671169]
[1756695121680,340.84,197.24,197.08,5.96671169]
[1756695122585,4.5631,197.21,197.11,4.5653]
[1756695122788,70.9732,197.23,197.08,5.96671169]
[1756695122985,0.88239769,197.37,197.16,5.96671169]
[1756695123288,9.48995363,197.36,197.17,70.9944]
[1756695123485,3.58995363,197.35,197.19,5.96671169]
[1756695123681,3.58995363,197.35,197.23,5.96671169]
[1756695123888,340.9,197.42,197.23,5.96671169]
[1756695124081,4.5592,197.38,197.24,5.96671169]
[1756695124487,70.9208,197.38,197.21,5.96671169]
[1756695124693,4.5598,197.35,197.21,5.96671169]
[1756695124886,3.56195909,197.34,197.17,5.96671169]
[1756695125082,251.8698,197.35,197.17,5.96671169]
[1756695125277,4.5604,197.33,197.17,5.96671169]
[1756695125481,71.79375164,197.41,197.21,5.96671169]
[1756695125681,3.55484957,197.4,197.25,5.96671169]
[1756695125882,180.68,197.43,197.29,4.5611]
[1756695126084,3.55555085,197.41,197.29,5.96671169]
[1756695126284,180.68,197.43,197.29,5.96671169]
[1756695126584,180.68,197.43,197.16,80.1255]
[1756695126585,70.919,197.38,197.16,70.9976]
[1756695126786,3.55280633,197.37,197.2,5.96671169]
[1756695126982,3.55280633,197.37,197.13,251.4459]
[1756695126983,70.9437,197.31,197.13,71.0081]
[1756695127183,70.9437,197.31,197.16,5.96671169]
[1756695127586,4.5615,197.27,197.16,5.96671169]
[1756695127786,70.9197,197.38,197.2,5.96671169]
[1756695127987,70.9102,197.41,197.24,5.96671169]
[1756695128193,4.5587,197.4,197.28,5.96671169]
[1756695128792,4.559,197.38,197.28,5.96671169]
[1756695128990,4.559,197.38,197.21,70.9759]
[1756695129292,70.915,197.39,197.27,5.96671169]
[1756695129993,70.9076,197.41,197.3,3.66026949]
[1756695130190,521.8,197.42,197.3,3.66026949]
[1756695130490,70.9121,197.4,197.33,3.66026949]
[1756695130889,70.9214,197.38,197.3,3.66026949]
[1756695131092,70.9228,197.37,197.27,3.66026949]
[1756695131286,4.5609,197.3,197.27,3.66026949]
[1756695131594,70.9478,197.3,197.21,3.66026949]
[1756695132191,4.5618,197.26,197.21,3.66026949]
[1756695132598,70.9507,197.29,197.18,3.66026949]
[1756695132894,70.9507,197.29,197.11,71.015]
[1756695132895,70.9303,197.35,197.21,3.66026949]
[1756695133091,141.8504,197.37,197.21,3.66026949]
[1756695133397,4.5599,197.35,197.24,3.66026949]
[1756695133802,4.5592,197.38,197.27,3.66026949]
[1756695134098,283.5423,197.48,197.27,3.66026949]
[1756695134099,178.8,197.43,197.27,3.66026949]
[1756695134287,4.5584,197.41,197.27,3.66026949]
[1756695134688,411.8045,197.42,197.27,3.66026949]
[1756695134892,4.559,197.39,197.27,3.66026949]
[1756695135088,340.9,197.42,197.28,4.5613]
[1756695135289,340.9,197.42,197.3,3.66026949]
[1756695135498,4.5583,197.41,197.3,3.66026949]
[1756695136294,4.5578,197.44,197.33,3.66026949]
[1756695137194,4.5578,197.44,197.26,70.9611]
[1756695137195,70.8969,197.44,197.24,70.9669]
[1756695137394,70.8969,197.44,197.2,70.983]
[1756695137395,70.908,197.41,197.32,3.66026949]
[1756695137797,70.8969,197.44,197.32,3.66026949]
[1756695138099,70.8902,197.46,197.31,5.94508956]
[1756695138496,70.8978,197.44,197.31,5.94508956]
[1756695138706,70.9004,197.43,197.31,5.94508956]
[1756695139402,70.8978,197.44,197.19,70.9835]
[1756695139593,70.8978,197.44,197.26,5.94508956]
[1756695140398,15.15,197.63,197.31,5.94508956]
[1756695140595,3.53567403,197.5,197.35,5.94508956]
[1756695140902,341.58167112,197.54,197.35,5.94508956]
[1756695141104,3.53648448,197.53,197.39,5.94508956]
[1756695141305,517.02,197.54,197.39,5.94508956]
[1756695141496,340.7,197.54,197.39,5.94508956]
[1756695142999,340.7,197.54,197.35,5.64]
[1756695143200,340.7,197.54,197.43,5.94508956]
[1756695144100,5.94508956,197.66,197.43,5.94508956]
[1756695144401,178.74599882,197.65,197.47,5.94508956]
[1756695144706,3.52599882,197.64,197.47,5.94508956]
[1756695145102,175.22,197.65,197.47,5.94508956]
[1756695146406,181.16508956,197.65,197.37,340.52]
[1756695146608,3.48937617,197.64,197.44,5.94508956]
[1756695146802,181.16508956,197.65,197.44,5.94508956]
[1756695147006,3.48977397,197.64,197.44,5.94508956]
[1756695147199,3.48977397,197.63,197.44,5.94508956]
[1756695147400,181.16508956,197.65,197.44,5.94508956]
[1756695147595,3.48722463,197.64,197.44,5.94508956]
[1756695147807,3.48722463,197.63,197.44,5.94508956]
[1756695148103,181.16508956,197.65,197.44,5.94508956]
[1756695148302,3.48543691,197.64,197.44,5.94508956]
[1756695148502,0.88110188,197.67,197.48,5.94508956]
[1756695148705,173.94,197.66,197.48,5.94508956]
[1756695149505,0.88110188,197.67,197.48,5.94508956]
[1756695149807,173.56,197.66,197.48,5.94508956]
[1756695150107,173.44,197.65,197.48,5.94508956]
[1756695150703,173.22,197.65,197.48,5.94508956]
[1756695151606,173.22,197.66,197.48,5.94508956]
[1756695152006,3.47781264,197.65,197.44,5.94508956]
[1756695152207,3.47674716,197.64,197.44,5.94508956]
[1756695152406,0.88109073,197.65,197.44,5.94508956]
[1756695152608,3.47857563,197.64,197.44,5.94508956]
[1756695152808,0.88109073,197.65,197.44,5.94508956]
[1756695153303,346.48508956,197.68,197.48,5.94508956]
[1756695153304,172.56,197.64,197.48,5.94508956]
[1756695153707,172.56,197.64,197.4,5.94508956]
[1756695154011,3.48012997,197.63,197.46,5.94508956]
[1756695154212,172.56,197.64,197.46,5.94508956]
[1756695154411,3.48068852,197.63,197.46,5.94508956]
[1756695154612,172.56,197.64,197.26,5.94508956]
[1756695154913,0.88123576,197.6,197.4,5.94508956]
[1756695155409,0.88123576,197.6,197.36,5.94508956]
[1756695155410,5.94508956,197.57,197.36,5.94508956]
[1756695155603,3.47981968,197.56,197.36,5.94508956]
[1756695155805,9.0,197.55,197.4,5.94508956]
[1756695156507,9.0,197.55,197.38,5.94508956]
[1756695156804,13.16,197.54,197.38,5.94508956]
[1756695157005,17.98,197.55,197.38,5.94508956]
[1756695157210,20.88,197.55,197.38,5.94508956]
[1756695157602,20.88,197.55,197.27,340.32]
[1756695157603,20.88,197.55,197.36,5.94508956]
[1756695157803,3.48158836,197.54,197.36,5.94508956]
[1756695158002,20.88,197.55,197.36,5.94508956]
[1756695158203,5.94508956,197.52,197.32,5.94508956]
[1756695159013,3.48245655,197.51,197.32,5.94508956]
[1756695159214,5.94508956,197.52,197.32,5.94508956]
[1756695159414,3.48426895,197.51,197.32,5.94508956]
[1756695159708,3.48426895,197.5,197.32,5.94508956]
[1756695159909,5.94508956,197.52,197.32,5.94508956]
[1756695160114,3.65927444,197.43,197.27,3.65927444]
[1756695160311,176.19927444,197.43,197.27,3.65927444]
[1756695160512,3.65927444,197.4,197.24,3.65927444]
[1756695161015,140.92,197.43,197.27,3.65927444]
[1756695161315,134.5,197.44,197.27,3.65927444]
[1756695161616,7.14602054,197.43,197.27,3.65927444]
[1756695161916,3.65927444,197.43,197.27,3.65927444]
[1756695162106,5.95018277,197.46,197.24,5.95018277]
[1756695162311,3.48753167,197.45,197.28,5.95018277]
[1756695162511,5.95018277,197.49,197.28,5.95018277]
[1756695162712,11.23073719,197.48,197.28,5.95018277]
[1756695162912,3.49073719,197.47,197.28,5.95018277]
[1756695163107,104.69073719,197.46,197.28,5.95018277]
[1756695163313,5.95018277,197.51,197.28,5.95018277]
[1756695163514,96.62,197.47,197.28,5.95018277]
[1756695163812,3.49449078,197.46,197.28,5.95018277]
[1756695164116,92.62,197.47,197.28,5.95018277]
[1756695164321,3.4962407,197.46,197.28,5.95018277]
[1756695164618,3.4962407,197.45,197.28,5.95018277]
[1756695164815,3.49859602,197.44,197.18,5.1]
[1756695165016,3.49859602,197.43,197.25,5.95018277]
[1756695165218,98.57018277,197.47,197.25,5.95018277]
[1756695165414,3.49891188,197.46,197.25,5.95018277]
[1756695165716,3.49891188,197.45,197.29,5.95018277]
[1756695165908,3.49891188,197.44,197.29,5.95018277]
[1756695166114,18.7,197.47,197.29,5.95018277]
[1756695166307,3.49907724,197.46,197.29,5.95018277]
[1756695166508,3.49907724,197.45,197.29,5.95018277]
[1756695166812,3.49907724,197.44,197.29,5.95018277]
[1756695167012,18.7,197.47,197.18,5.1]
[1756695167212,3.50314198,197.46,197.28,5.95018277]
[1756695167415,3.50314198,197.45,197.28,5.95018277]
[1756695167612,3.50314198,197.44,197.28,5.95018277]
[1756695167810,22.9,197.48,197.28,5.95018277]
[1756695168018,3.50667396,197.47,197.28,5.95018277]
[1756695168216,3.50667396,197.46,197.28,5.95018277]
[1756695168413,3.50667396,197.45,197.28,5.95018277]
[1756695168612,3.50667396,197.44,197.28,5.95018277]
[1756695168920,3.50667396,197.43,197.26,5.95018277]
[1756695169111,22.9,197.48,197.26,5.95018277]
[1756695169419,5.95018277,197.45,197.26,5.95018277]
[1756695169620,3.50912127,197.44,197.26,5.95018277]
[1756695170813,3.50912127,197.43,197.26,5.95018277]
[1756695171015,3.50912127,197.42,197.26,5.95018277]
[1756695171217,3.50808937,197.41,197.22,5.95018277]
[1756695171420,5.95018277,197.43,197.22,5.95018277]
[1756695171717,3.50834648,197.42,197.22,5.95018277]
[1756695171912,5.95018277,197.43,197.22,5.95018277]
[1756695172109,3.50791691,197.42,197.22,5.95018277]
[1756695172321,5.95018277,197.43,197.22,5.95018277]
[1756695172620,3.50944473,197.42,197.22,5.95018277]
[1756695172918,5.95018277,197.43,197.22,5.95018277]
[1756695173121,3.50900236,197.42,197.26,5.95018277]
[1756695173315,22.29018277,197.47,197.26,5.95018277]
[1756695173522,5.95018277,197.43,197.21,5.95018277]
[1756695173717,3.50900864,197.42,197.21,5.95018277]
[1756695173916,3.50900864,197.41,197.21,5.95018277]
[1756695174228,3.50900864,197.4,197.21,5.95018277]
[1756695174521,5.95018277,197.43,197.21,5.95018277]
[1756695174722,3.50865198,197.42,197.21,5.95018277]
[1756695174922,3.50865198,197.41,197.21,5.95018277]
[1756695175124,5.95018277,197.39,197.21,5.95018277]
[1756695175430,5.95018277,197.39,197.12,5.95018277]
[1756695175431,5.95018277,197.35,197.12,5.95018277]
[1756695175617,172.42,197.34,197.12,5.95018277]
[1756695175818,5.95018277,197.35,197.12,5.95018277]
[1756695176022,172.42,197.34,197.12,5.95018277]
[1756695176816,172.42,197.33,197.12,5.95018277]
[1756695177023,5.95018277,197.35,197.12,5.95018277]
[1756695177215,172.42,197.34,197.12,5.95018277]
[1756695177417,355.73,197.38,197.04,340.52]